{"text_format":"1","workbook":"xlsx","n_sheets":1,"sheets":["6030"],"not_rendered":{"charts":0,"images":0,"macros":0,"external_links":0,"defined_names":0,"comments":0,"pivot_tables":0},"unopened":[],"bounds":{"document_bytes":16777216,"sheet_cells":100000,"rows_first":2000,"rows_last":500,"rows_between":2000,"halvings":0,"cell_chars":16384,"cell_head_chars":4096},"cells_cut":0,"cells_raw":0,"read":"whole","date_system":"1900"}

{"sheet":"6030","index":0,"n_rows":175,"n_cols":13,"rows_kept":175,"cut":false,"hidden":false,"merged":[[0,10,1,12],[2,0,2,12],[3,0,3,12],[4,0,5,0],[4,4,4,12],[5,4,5,12],[6,0,7,0],[6,4,6,12],[7,4,7,12],[8,0,9,0],[8,4,8,12],[9,4,9,12],[10,0,11,0],[10,1,10,7],[11,1,11,3],[13,1,13,3],[13,4,13,6],[13,7,13,9],[17,0,18,0],[17,1,17,12],[19,0,20,0],[19,1,20,1],[19,2,19,4],[19,5,19,7],[19,8,19,10],[27,0,27,10],[28,1,28,12],[154,0,154,12],[159,0,159,12],[57,0,57,12],[115,0,115,12],[144,0,144,12],[30,1,31,1],[30,2,30,4],[30,5,30,7],[30,8,30,10],[36,1,36,12],[37,0,39,0],[37,1,39,1],[37,2,39,2],[37,3,39,3],[37,4,38,6],[37,7,38,9],[37,10,38,12],[174,9,174,12],[167,0,167,12],[168,0,168,12],[170,0,170,6],[170,9,170,12],[171,9,171,12],[173,0,173,6],[173,9,173,12]]}
[null,null,null,null,null,null,null,null,null,null,"ЗАТВЕРДЖЕНО\nНаказ Міністерства фінансів України\n26 серпня 2014 року N 836\n(у редакції наказу Міністерства фінансів України\nвід 15 листопада 2018 року N 908)"]
[]
["Звіт"]
["про виконання паспорта бюджетної програми місцевого бюджету за 2019 рік"]
["1.","0100000",null,null,"Дунаєвецька міська рада"]
[null,"(КТПКВК МБ)",null,null,"(найменування головного розпорядника)"]
["2.","0110000",null,null,"Дунаєвецька міська рада"]
[null,"(КТПКВК МБ)",null,null,"(найменування відповідального виконавця)"]
["3.","0116030","0620",null,"Організація благоустрою населних пунктів"]
[null,"(КТПКВК МБ)","(КФКВК)",null,"(найменування бюджетної програми)"]
["4.","Видатки (надані кредити) за бюджетною програмою:"]
[null,"(грн)"]
[]
[null,"Затверджено у паспорті бюджетної програми",null,null,"Касові видатки (надані кредити)",null,null,"Відхилення"]
[null,"загальний фонд","спеціальний фонд","усього","загальний фонд","спеціальний фонд","усього","загальний фонд","спеціальний фонд","усього"]
[null,1,2,3,4,5,6,7,8,9]
[null,6872359,835957,7708316,6615198,773661,7388859,-257161,-62296,-319457]
["5.","Напрями використання бюджетних коштів:"]
[null,"(грн)"]
["N\nз/п","Напрями використання  бюджетних коштів","Затверджено у паспорті бюджетної програми",null,null,"Касові видатки (надані кредити)",null,null,"Відхилення"]
[null,null,"загальний фонд","спеціальний фонд","усього","загальний фонд","спеціальний фонд","усього","загальний фонд","спеціальний фонд","усього"]
[1,2,3,4,5,6,7,8,9,10,11]
[1,"Забезпечення облаштування та утримання окремої території (парку,скверів, тощо)",5955044,663717,6618761,5952098,601261,6553359,-2946,-62456,-65402]
[2,"Забезпечення утримання  в належному технічному стані об\"єктів дорожнього господарства",236050,null,236050,228500,null,228500,-7550,null,-7550]
[3,"Забезпечення функціонування громадських вбиралень",99549,172240,271789,80300,172400,252700,-19249,160,-19089]
[4,"Забезпечення та утримання  на  належному рівні зеленої зони населеного пункту та поліпшення його екологічних умов",581716,null,581716,354300,null,354300,-227416,null,-227416]
[null,"Усього",{"$f":"SUM(C23:C26)","v":6872359},{"$f":"SUM(D23:D26)","v":835957},7708316,6615198,773661,7388859,-257161,-62296,-319457]
["Відхилення між касовими видатками (наданими кредитами) та показниками, затвердженими у паспорті бюджетної програми  виникла через  зменшення витрат на зимове утримання тротуарів, у зв'язку з погодніми умовами, зменшення витрат на оплату за вуличне освітлення ,зменшення витрат на капітальний ремонт вуличного освітлення та на придбання лавочок та матриць до світлофорів."]
["6.","Видатки (надані кредити) на реалізацію місцевих/регіональних програм, які виконуються в межах бюджетної програми:"]
[null,"(грн)"]
[null,"Найменування місцевої / регіональної програми","Затверджено у паспорті бюджетної програми",null,null,"Касові видатки (надані кредити)",null,null,"Відхилення"]
[null,null,"загальний фонд","спеціальний фонд","усього","загальний фонд","спеціальний фонд","усього","загальний фонд","спеціальний фонд","усього"]
[null,1,2,3,4,5,6,7,8,9,10]
[null,"Програма реформування і розвитку ЖКГ Дунаєвецької міської ради на 2017-2020 роки",6872359,835957,7708316,6615198,773661,7388859,-257161,-62296,-319457]
[null,"Усього",6872359,835957,7708316,6615198,773661,7388859,-257161,-62296,-319457]
[]
["7.","Результативні показники бюджетної програми та аналіз їх виконання:"]
["N\n з/п","Показники","Одиниця виміру","Джерело інформації","Затверджено у паспорті бюджетної програми",null,null,"Фактичні результативні показники, досягнуті за рахунок касових видатків (наданих кредитів)",null,null,"Відхилення"]
[]
[null,null,null,null,"загальний фонд","спеціальний фонд","усього","загальний фонд","спеціальний фонд","усього","загальний фонд","спеціальний фонд","усього"]
[1,2,3,4,5,6,7,8,9,10,11,12,13]
[null,"Забезпечення утримання  в належному технічному стані об\"єктів дорожнього господарства"]
[null,"затрат"]
[1,"кількість  мотогодин  необхідних для улаштування тротуарів ","мото.год","розрахунок",38,null,38,16,null,16,-22,null,-22]
[2,"кількість  людино-годин необхідних для улаштування тротуарів ","люд.год","розрахунок",184,null,184,75,null,75,-109,null,-109]
[3,"кількість  машинно-годин необхідних для зимового улаштування тротуарів ","маш.год","розрахунок",308,null,308,123,null,123,-185,null,-185]
[4,"кількість населених пунктів,що потребують поточного ремонту мостів, оголовків та приямків ","од.","розрахунок",2,null,2,2,null,2]
[null,"продукту"]
[1,"кількість  мотогодин, що плануються  для улаштування тротуарів ","мото.год","розрахунок",38,null,38,16,null,16,-22,null,-22]
[2,"кількість  людинно-годин, що плануються для улаштування тротуарів ","люд.год","розрахунок",184,null,184,75,null,75,-109,null,-109]
[3,"кількість  машинно-годин,що планують для зимового утримання тротуарів ","маш.год","розрахунок",308,null,308,123,null,123,-185,null,-185]
[4,"кількість населених пунктів,що планують  поточний ремонт мостів, оголовків та приямків ","од.","розрахунок",2,null,2,2,null,2]
[null,"ефективності"]
[1,"середня вартість 1 мотогодини   для улаштування тротуарів ","грн.","розрахунок",323.86,null,323.86,323.86,null,323.86]
[2,"вартість 1 людинно-години  для улаштування тротуарів ","грн.","розрахунок",33.68,null,33.68,33.68,null,33.68]
[3,"вартість 1 машинно-години  для зимового утримання тротуарів ","грн.","розрахунок",139.91,null,139.91,139.91,null,139.91]
[4,"середні витрати на ремонт мостів,оголовків та приямків для 1 населеного  пункту","тис.грн.","розрахунок",120.59,null,120.59,101.8,null,101.8,-18.79,null,-18.79]
["Відхилення між затвердженими та досягнутими результативними показниками виникли тому, що  зменшилась площа тротуарів, де було проведено  очищення  від снігу та льоду, в зв'язку з погодніми умовами ,  зменшились витрати на проведення  ремонту мостів,оголовків,приямків по одному населеному пункту."]
[null,"Забезпечення облаштування та утримання окремої території (парку,скверів, тощо)"]
[null,"затрат"]
[1,"кількість  старостатів ,які потребують прибиральників на умовах ЦПХ","тер.од.","розрахунок",21,null,21,21,null,21]
[2,"видатки на виконання проектів громадського бюджету,які затверджені","тис.грн.","Положення",335.8,197.75,533.55999999999995,320.8,188,508.8,-15,-9.75,-24.76]
[3,"протяжність мережі вуличного освітлення, що потребує обслуговування","м/пог.","розрахунок",2000,null,2000,2000,null,2000]
[4,"кількість кВт/год електроенергії, необхідної для вуличного освітлення","кВт/год","розрахунок",264623,null,264623,235542,null,235542,-29081,null,-29081]
[5,"об'єм  ТВП, мулу, що потрібно вивести","м/куб","розрахунок",7588,null,7588,7588,null,7588]
[6,"протяжність бордюрів,що потрібно побілити","м/пог.","розрахунок",1439,null,1439,1439,null,1439]
[7,"кількість ставків та парків,що потребують проведення охорони","од.","розрахунок",2,null,2,2,null,2]
[8,"кількість об\"єктів (новорічних ялинок), які потрібно охороняти","од","розрахунок",1,null,1,1,null,1]
[9,"кількість новорічних ялинок, що потребують монтажу та демонтажу","од","розрахунок",1,null,1,1,null,1]
[10,"кількість бездомних тварин,що потребують відлову"," од","розрахунок",180,null,180,180,null,180]
[11,"кількість населених пунктів, що потребують послуги по ліквідації стихійних сміттєзвалищ","од.","розрахунок",18,null,18,18,null,18]
[12,"кількість мотогодин,  необхідних використати для обрізки дерев та кущів ","мото/год","розрахунок",460,null,460,460,null,460]
[13,"кількість людинно-годин, необхідних використати для обрізки дерев та кущів","люд/год","розрахунок",1593,null,1593,1593,null,1593]
[14,"кількість населених пунктів, що потребують облаштування громадських криниць","од","розрахунок",13,null,13,13,null,13]
[15,"кількість проектів, що потребують виготовлення ПКД по капітальному ремонту вуличного освітлення ","од","розрахунок",null,25,25,null,25,25]
[16,"кількість населених, що потребують придбання цембринь для облаштування громадських криниць","од","розрахунок",null,9,9,null,9,9]
[17,"кількість населених пунктів, що потребують капітального ремонту вуличного освітлення ","од.","розрахунок",null,1,1,null,1,1]
[18,"кількість лавочок, що потребують встановлення ","од","розрахунок",2,null,2,null,0,0,-2,null,-2]
[19,"кількість населених пунктів, що потребують облаштування автобусних зупинок ","од","розрахунок",5,5,5,2,2,2,-3,-3,-3]
[20,"кількість сміттєвих майданчиків, що потребують облаштування ","од","розрахунок",2,null,2,2,null,2]
[21,"кількість мотогодин необхідних для поточного ремонту та обслуговування вуличного освітлення та світлофорів ","мото.год","розрахунок",1940,null,1940,1940,null,1940]
[22,"кількість людинно-годин необхідних для поточного ремонту та обслуговування вуличного освітлення та світлофорів ","люд.год","розрахунок",2411,null,2411,2411,null,2411]
[23,"кількість матриць,які потрібно замінити у світлофорі","од.","розрахунок",2,null,2,null,null,null,-2,null,-2]
[24,"кількість двірників,які потребують утримування за рахунок фінансової підтримки","од","розрахунок",22,null,22,22,null,22]
[25,"кількість автобусних зупинок,що потребують облаштування бруківкою","од.","розрахунок",2,null,2,2,null,2]
[26,"кількість обладнання, що потрібно придбати для КП \"Благоустрій Дунаєвеччини\"","од.","розрахунок",null,2,2,null,2,2]
[27,"кількість коплектів для новорічної ялинки, що потрібно  придбати КУ ДМР  \"Благоустрій Дунаєвеччини\" ","компл.","розрахунок",null,1,1,null,1,1]
[null,"продукту"]
[1,"кількість  старостатів,які планують працівників  на умовах ЦПХ","тер.од.","розрахунок",21,null,21,21,null,21]
[2,"кількість проектів громадського бюджету(бюджет участі), які затверджені","од.","Положення",10,6,10,10,6,10]
[3,"протяжність мереж вуличного освітлення, які планують  обслуговувати","м/пог.","розрахунок",2000,null,2000,2000,null,2000]
[4,"кількість кВт/год електроенергії, що планують використати  для вуличного освітлення","кВт/год","розрахунок",264623,null,264623,235542,null,235542,-29081,null,-29081]
[5,"об'єм  ТВП, мулу, що потрібно провести","м/куб","розрахунок",7588,null,7588,7588,null,7588]
[6,"протяжність бордюрів,що потрібно побілити","м/пог.","розрахунок",1439,null,1439,1439,null,1439]
[7,"кількість ставків та парків,що планують  охороняти","од.","розрахунок",2,null,2,2,null,2]
[8,"кількість об\"єктів (новорічних ялинок) які планують охороняти","од","розрахунок",1,null,1,1,null,1]
[9,"кількість новорічних ялинок, що ппланують змонтувати та  демонтувати","од","розрахунок",1,null,1,1,null,1]
[10,"кількість бездомних тварин,що планують  відловити","од","розрахунок",180,null,180,180,null,180]
[11,"кількість населених пунктів, де планують надати послуги по ліквідації стихійних сміттєзвалищ","од.","розрахунок",9,null,9,9,null,9]
[12,"кількість мотогодин, які планують використати для обрізки дерев та кущів ","мото.год","розрахунок",460,null,460,460,null,460]
[13,"кількість людино-годин , які планують використати для обрізки дерев та кущів","люд.год","розрахунок",1593,null,1593,1593,null,1593]
[14,"кількість населених пунктів, що планують  облаштування громадських криниць","од","розрахунок",13,null,13,13,null,13]
[15,"кількість населених пуктів, що планують  виготовити ПКД по капітальному ремонту вуличного освітлення ","од","розрахунок",null,25,25,null,25,25]
[16,"кількість населених пунктів, де планують  придбання цембринь для облаштування громадських криниць","од","розрахунок",null,9,9,null,9,9]
[17,"кількість населених пунктів, де планують проведення  капітального ремонту вуличного освітлення ","од.","розрахунок",null,1,1,null,1,1]
[18,"кількість лавочок, які планують встановити","од","розрахунок",2,null,2,null,null,null,-2,null,-2]
[19,"кількість проектів, де планують  облаштування автобусних зупинок ","од","розрахунок",5,5,5,2,2,2,-3,-3,-3]
[20,"кількість сміттєвих майданчиків,які планують  облаштування ","од","розрахунок",2,null,2,2,null,2]
[21,"кількість мото/год , які планують використати  для поточного ремонту та обслуговування вуличного освітлення та світлофорів ","мото/год","розрахунок",1940,null,1940,1940,null,1940]
[22,"кількість люд/год,які планують використати для поточного ремонту та обслуговування вуличного освітлення та світлофорів ","люд/год","розрахунок",2411,null,2411,2411,null,2411]
[23,"кількість матриць,які планують  замінити у світлофорі","од.","розрахунок",2,null,2,null,null,null,-2,null,-2]
[24,"кількість двірників,які планують  утримування за рахунок фінансової підтримки","од","розрахунок",22,null,22,22,null,22]
[25,"кількість автобусних зупинок,де планують  облаштування бруківкою","од.","розрахунок",2,null,2,2,null,2]
[26,"кількість обладнання, що планують придбати для КП \"Благоустрій Дунаєвеччини\"","од.","розрахунок",null,2,2,null,2,2]
[27,"кількість коплектів для новорічних ялинок, що планують придбати  для КУ ДМР  \"Благоустрій Дунаєвеччини\" ","од","розрахунок",null,1,1,null,1,1]
["Розбіжності між затвердженими та досягнутими результативними показниками виникли по причині  використання меншої кількості  електроенергії для забезпечення вуличного освітлення,  ніж планувалося ,  у зв'язку із зміною режиму вуличного освітлення,не було придбано лавочок для встановлення та придбано і встановлено менша кількість автобусних зупинок, ніж планувалося та не було придбано матриць для світлофорів."]
[null,"ефективності"]
[1,"середні витрати на утримання прибиральників по 1 старостату на умовах  ЦПХ","тис.грн.","розрахунок",11.71,null,11.71,10.76,null,10.76,-0.95,null,-0.95]
[2,"видатки на реалізацію 1 проекту \"Громадського бюджету\"","тис.грн.","Положення",33.58,32.96,53.36,32.08,31.33,50.88,-1.5,-1.63,-2.48]
[3,"середня вартість технічного обслуговування 1м/пог. мереж вуличного освітлення","тис.грн.","розрахунок",0.2,null,0.2,0.2,null,0.2]
[4,"вартість 1 кВт/год електроенергії  для вуличного освітлення","кВт/год","розрахунок",3.05,null,3.05,3.05,null,3.05]
[5,"середні витрати на вивіз 1 куб  ТВП та мулу","грн.","розрахунок",137.51,null,137.51,137.51,null,137.51,{"$f":"H122-E122","v":0},null,{"$f":"J122-G122","v":0}]
[6,"середні витрати на побілку 1 м/пог.бордюр","грн.","розрахунок",49.96,null,49.96,49.96,null,49.96]
[7,"середні витрати на охорону  ставка та парку ","тис.грн.","розрахунок",39.81,null,39.81,33.4,null,33.4,{"$f":"H124-E124","v":-6.4100000000000037},null,-6.41]
[8,"вартість по охорони новорічної ялинки","грн.","розрахунок",17.02,null,17.02,11.4,null,11.4,-5.62,null,-5.62]
[9,"вартість монтажу  та  демонажу 1 новорічної ялинки ","тис.грн.","розрахунок",110.1,null,110.1,110,null,110,-0.1,null,-0.1]
[10,"середня вартість відлову 1  бездомної тварини","тис.грн.","розрахунок",0.2,null,0.2,0.2,null,0.2]
[11,"середні витрати на  ліквідацію стихійного  сміттєзвалища в 1 населеному пункті ","тис.грн.","розрахунок",12.68,null,12.68,11.93,null,11.93,{"$f":"H128-E128","v":-0.75},null,{"$f":"K128","v":-0.75}]
[12,"середня вартість 1  мото/год для обрізки дерев та кущів ","грн.","розрахунок",310.64,null,310.64,310.64,null,310.64]
[13,"середня вартість 1 люд/год  для обрізки дерев та кущів","грн.","розрахунок",37.979999999999997,null,37.979999999999997,37.979999999999997,null,37.979999999999997]
[14,"середня вартість   облаштування 1 громадської криниці","тис.грн.","розрахунок",4.0999999999999996,null,4.0999999999999996,4.0999999999999996,null,4.0999999999999996,-0.01,null,-0.01]
[15,"середня вартість  виготовлення  ПКД по капітальному ремонту вуличного освітлення ","тис.грн.","розрахунок",null,2.21,2.21,null,2.21,2.21]
[16,"середня вартість 1  цембринь для облаштування громадської криниці","тис.грн.","розрахунок",null,6.5,6.5,null,6.5,6.5]
[17,"середня вартість   капітального ремонту вуличного освітлення ","тис.грн.","розрахунок",null,150,150,null,114.9,114.9,null,-35.1,-35.1]
[18,"середня вартість встановлення 1 лавочки","тис.грн.","розрахунок",7.5,null,7.5,null,null,null,-7.5,null,-7.5]
[19,"середня вартість   облаштування 1 автобусної  зупинки ","тис.грн.","розрахунок",10.5,15.2,25.7,3.65,22,25.65,{"$f":"H136-E136","v":-6.85},{"$f":"I136-F136","v":6.8000000000000007},{"$f":"J136-G136","v":-5.0000000000000711E-2}]
[20,"вартість облаштування 1 сміттєвого  майданчика","тис.грн.","розрахунок",82.65,0,82.65,75.5,null,75.5,-7.15,null,-7.15]
[21,"середня вартість 1 мото/год ,   для поточного ремонту та обслуговування вуличного освітлення та світлофорів ","грн.","розрахунок",461.07,null,461.07,461.07,null,461.07]
[22,"середня вартість 1 люд/год,для поточного ремонту та обслуговування вуличного освітлення та світлофорів ","грн.","розрахунок",65.08,null,65.08,65.08,null,65.08]
[23,"середня вартість 1  матриці","тис.грн.","розрахунок",13.2,null,13.2,null,null,null,-13.2,null,-13.2]
[24,"витрати на утримання 1  двірника за рахунок фінансової підтримки","тис.грн.","розрахунок",71.14,null,71.14,69.84,null,69.84,-1.3,null,-1.3]
[25,"середня вартість облаштування бруківкою 1 автобусної зупинки","тис.грн.","розрахунок",11,null,11,10.6,null,10.6,-0.4,null,-0.4]
[26,"середні витрати на придбання  обладнання для КП \"Благоустрій Дунаєвеччини\"","грн.","розрахунок",null,40.4,40.4,null,35.1,35.1,null,{"$f":"I143-F143","v":-5.2999999999999972},{"$f":"L143","v":-5.2999999999999972}]
[27,"середня вартість 1 комплекту штучних гілок та хвої для новорічної ялинки ","грн.","розрахунок",null,39,39,null,38.200000000000003,38.200000000000003,null,-0.8,-0.8]
["Розбіжностей між затвердженими та досягнутими результативними показниками виникли по таких  позиціях: 1) середні витрати на утримання одного прибиральника по  одному старостату менші, ніж планувалося у зв'язку  з тим, що оплата послуг здійснювалась по факту виконання робіт; 2)  видатки на виконання проектів  Громадського бюджету, а саме по проекту \"Стеріалізація-гуманний крок\" зменшилися, у зв'язку із придбанням дешевших кліток для тварин, ніж заплановано та сплатою меншої суми за оренду приміщення; 3)середні витрати на охорону парку і ставка зменшилися у зв'язку тим, що при плануванні було передбачено донарахування ЄСВ до повної ставки, а  по факту ставки за охорону парку та ставка об\"єднали в одну, потреби в донарахуванні ЄСВ не було; 4)середні витрати на капітальний ремонт вуличного освітлення менші запланованого у зв\"язку з придбанням меншої кількості матеріалів, які  враховані при розрахунках;5) середня вартість облаштування 1 сміттєвого майданчика менша. через закупівлю матеріалів з нижчими цінами, ніж планувалося;  6) витрати на встановлення лавочок та придбання матриць для світлофорів не здійснювалися; 7) середні витрати на облаштування автобусних зупинок  в населених пунктах громади, менша запланованої, у зв'язку з тим, що придбано та встановлено, лише 2 автобусні зупинки із 5 запланованих, у зв'язку з підвищенням їх вартості;                                                                                                                                                                                                             8)середні витрати на придбання обладнання для КП \"Благоустрій Дунаєвеччини\" та комплекту штучних гілок та хвої зменшилися внаслідок вибору меншої цінової пропозиції."]
[null,"Забезпечення та утримання  на  належному рівні зеленої зони населеного пункту та поліпшення його екологічних умов"]
[null,"затрат"]
[1,"придбання декоративних насаджень та догляд за ними, що потрібно здійснити ","шт","розрахунок",26515,0,26515,22484,null,22484,-4031,null,-4031]
[2,"кількість люд/годин, які потрібно затратити для улаштування квітників та газонів","люд/год","розрахунок",3660,0,3660,3044,null,3044,-616,null,-616]
[3,"кількість мото/годин, які потрібно затратити для улаштування квітників та газонів","мото/год","розрахунок",260,null,260,217,null,217,-43,null,-43]
[null,"продукту"]
[1,"придбання декоративних насаджень та догляд за ними, що планують здійснити ","шт","розрахунок",26515,0,26515,22484,null,22484,{"$f":"J152-G152","v":-4031},null,{"$f":"K152","v":-4031}]
[2,"кількість люд/годин, які планують затратити для улаштування квітників та газонів","люд/год","розрахунок",3660,0,3660,2883,null,2883,-777,null,-777]
[3,"кількість мото/годин, які планують затратити для улаштування квітників та газонів","мото/год","розрахунок",260,null,260,217,null,217,-43,null,-43]
["Розбіжностей між затвердженими та досягнутими результативними показниками виникли по причині закупівлі меншої кількості декоративних насаджень, ніж планувалося у зв'язку із  тим, що частина квітів висівалися із насіння,  заготовленого власними силами,   зменшенням затрат на улаштування квітників та газонів в зв\"язку із сприятливими погодніми  умовами ."]
[null,"ефективності"]
[1,"витрати на придбання декоративних насаджень та догляд за ними","грн.","розрахунок",3.09,null,3.09,3.09,null,3.09]
[2,"середня вартість 1 люд/годин, для улаштування квітників та газонів","грн.","розрахунок",78.010000000000005,null,78.010000000000005,78.010000000000005,null,78.010000000000005]
[3,"середня вартість 1 мото/годин, для улаштування квітників та газонів","грн.","розрахунок",218.26,null,218.26,218.26,null,218.26]
["Розбіжностей між затвердженими та досягнутими результативними показниками  немає,оплата послуг КП \"Благоустрій Дунаєвеччини\" проводились відповідно до актів про надані послуги по озелененню. Сума економії по зазначеному напрямку використання коштів була спрямована на виконання інших напрямків."]
[null,"Забезпечення функціонування громадських вбиралень"]
[null,"затрат"]
[1,"кількість громадських вбиралень","од","розрахунок",1,1,2,1,1,2]
[null,"продукту"]
[1,"кількість громадських вбиралень,що планується обслуговувати ","од","розрахунок",1,1,2,1,1,2]
[null,"ефективності"]
[1,"середні витрати на обслуговування 1 громадської вбиральні ","тис.грн.","розрахунок",99.549000000000007,172.24,135.88999999999999,80.3,172.4,126.35,-19.248999999999999,0.16,-9.5399999999999991]
["Відхилення по загальному фонду  між затвердженими та досягнутими результативними показниками  в частині витрат на обслуговування 1 вбиральні в сумі 19,249 тис.грн. виникли у звязку з економним та раціональним використанням коштів на оплату праці та енергоносії.По спеціальному фонду  КП \"Благоустрій Дунаєвеччини\" було проведено закупівлю та облаштування громадського туалету."]
["Заплановані результативні показники виконані на 95,8%, а саме:1) Забезпечено  утримання в належному технічному стані об\"єктів дорожнього господарства на 96,8%,( внесені зміни до послуг по улаштуванню тротуарів в зв'язку з погодніми умовами); 2) Забезпечено облаштування та утримання окремої території(парку,скверу ) на 99%, реалізовано 10 проектів по Громадському бюджету, задіяно  5  чол. прибиральників по господаствах на умовах ЦПХ, економно та раціонально використовувався ресурс по відшкодуванню вуличного освітлення, було здійснено капітальний ремонт вуличного освітлення в с.Ганнівка,закуплено техніку для комунального підприємства,здійснено видатки на охорону парку та ставка, здійснено монтаж та демонтаж новорічної ялинки та інше;3)Забезпечення та утримання на належному рівні зеленої зони населених пунктів громади виконано на 100%, сума економії спрямована на виконання інших завдань по програмі, а саме \"Забезпечення облаштування та утримання окремої території (парку,скверів, тощо)\"; 4)Забезпечення функціонування громадських приймалень виконано  на 93%, оплачені послуги по утриманню громадського туалету,придбано та встановлено  КП \"Благоустрій Дунаєвеччини\" громадський туалет в м.Дунаївці. "]
[]
["Міський голова",null,null,null,null,null,null,null,null,"В.В.Заяць"]
[null,null,null,null,null,null,null,"(підпис)",null,"(ініціали та прізвище)"]
[]
["Головний бухгалтер ",null,null,null,null,null,null,null,null,"О.П.Рищенко"]
[null,null,null,null,null,null,null,"(підпис)",null,"(ініціали та прізвище)"]